[Event "Titled Tuesday Blitz November 07 Late 2023"]
[White "Villarreal, Agustin"]
[Black "Sturt, Raven"]
[WhiteFideId "125687"]
[BlackFideId "2007304"]
[WhiteElo "2431"]
[BlackElo "2595"]
[Result "0-1"]
[Round "5"]
[TimeControl "180+1"]
[Date "2023.11.07"]
[WhiteClock "0:00:01"]
[BlackClock "0:00:05"]
[Board "77"]

1. d4 {[%clk 0:02:26]}  f5 {[%clk 0:02:53]} 2. Nf3 {[%clk 0:02:24]}  Nf6 {[%clk 0:02:54]} 3. g3 {[%clk 0:02:25]}  g6 {[%clk 0:02:54]} 4. Bg2 {[%clk 0:02:26]}  Bg7 {[%clk 0:02:55]} 5. O-O {[%clk 0:02:27]}  O-O {[%clk 0:02:56]} 6. c4 {[%clk 0:02:28]}  d6 {[%clk 0:02:56]} 7. Nc3 {[%clk 0:02:29]}  Qe8 {[%clk 0:02:57]} 8. d5 {[%clk 0:02:29]}  Na6 {[%clk 0:02:57]} 9. Be3 {[%clk 0:02:29]}  Bd7 {[%clk 0:02:57]} 10. Bd4 {[%clk 0:02:25]}  c6 {[%clk 0:02:53]} 11. dxc6 {[%clk 0:02:14]}  bxc6 {[%clk 0:02:53]} 12. c5 {[%clk 0:02:08]}  e5 {[%clk 0:02:51]} 13. Be3 {[%clk 0:02:07]}  d5 {[%clk 0:02:51]} 14. Bg5 {[%clk 0:01:57]}  Nxc5 {[%clk 0:02:45]} 15. Rc1 {[%clk 0:01:57]}  Nfe4 {[%clk 0:02:35]} 16. Nxe4 {[%clk 0:01:50]}  Nxe4 {[%clk 0:02:35]} 17. Bd2 {[%clk 0:01:49]}  Rb8 {[%clk 0:02:30]} 18. b3 {[%clk 0:01:49]}  c5 {[%clk 0:02:29]} 19. Ba5 {[%clk 0:01:48]}  d4 {[%clk 0:02:19]} 20. Nd2 {[%clk 0:01:43]}  Nxd2 {[%clk 0:02:04]} 21. Qxd2 {[%clk 0:01:44]}  Qe7 {[%clk 0:02:05]} 22. Rc2 {[%clk 0:01:38]}  e4 {[%clk 0:01:58]} 23. Rfc1 {[%clk 0:01:37]}  Rb5 {[%clk 0:01:57]} 24. a4 {[%clk 0:01:34]}  Rxb3 {[%clk 0:01:50]} 25. Rxc5 {[%clk 0:01:34]}  Rbb8 {[%clk 0:01:41]} 26. Rc7 {[%clk 0:01:34]}  Rfc8 {[%clk 0:01:24]} 27. Rxa7 {[%clk 0:01:11]}  Be5 {[%clk 0:01:08]} 28. Bc7 {[%clk 0:00:56]}  Rxc7 {[%clk 0:00:50]} 29. Raxc7 {[%clk 0:00:53]}  Bxc7 {[%clk 0:00:50]} 30. Rxc7 {[%clk 0:00:52]}  Qd6 {[%clk 0:00:47]} 31. Rc4 {[%clk 0:00:46]}  Rb1+ {[%clk 0:00:15]} 32. Bf1 {[%clk 0:00:44]}  Be6 {[%clk 0:00:14]} 33. Rxd4 {[%clk 0:00:43]}  Qe5 {[%clk 0:00:14]} 34. Rd8+ {[%clk 0:00:33]}  Kg7 {[%clk 0:00:14]} 35. Rd6 {[%clk 0:00:31]}  Kf7 {[%clk 0:00:11]} 36. a5 {[%clk 0:00:30]}  Ra1 {[%clk 0:00:09]} 37. a6 {[%clk 0:00:30]}  f4 {[%clk 0:00:09]} 38. gxf4 {[%clk 0:00:19]}  Bh3 {[%clk 0:00:09]} 39. Rd7+ {[%clk 0:00:10]}  Kg8 {[%clk 0:00:08]} 40. Rd8+ {[%clk 0:00:08]}  Kg7 {[%clk 0:00:08]} 41. Qd1 {[%clk 0:00:04]}  Rxd1 {[%clk 0:00:07]} 42. Rxd1 {[%clk 0:00:05]}  Qh5 {[%clk 0:00:07]} 43. a7 {[%clk 0:00:01]}  Qg4+ {[%clk 0:00:03]} 44. Kh1 {[%clk 0:00:01]}  Bxf1 {[%clk 0:00:04]} 45. Rxf1 {[%clk 0:00:01]}  Qxe2 {[%clk 0:00:05]} 46. a8=Q {[%clk 0:00:01]}  Qxf1# {[%clk 0:00:05]} 0-1


[Site "https://www.chess.com"]

[Event "Titled Tuesday Blitz November 07 Late 2023"]
[White "Goncalves, Davi Sulzbacher"]
[Black "Gimenez Aguirre, Alejo Ismael"]
[WhiteFideId "2154510"]
[BlackFideId "32041667"]
[WhiteElo "2420"]
[BlackElo "2570"]
[Result "0-1"]
[Round "5"]
[TimeControl "180+1"]
[Date "2023.11.07"]
[WhiteClock "0:00:10"]
[BlackClock "0:00:07"]
[Board "83"]

1. d4 {[%clk 0:03:00]}  Nf6 {[%clk 0:02:59]} 2. c4 {[%clk 0:03:01]}  e6 {[%clk 0:02:59]} 3. Nc3 {[%clk 0:03:01]}  Bb4 {[%clk 0:03:00]} 4. f3 {[%clk 0:03:01]}  d5 {[%clk 0:02:56]} 5. a3 {[%clk 0:03:00]}  Bxc3+ {[%clk 0:02:55]} 6. bxc3 {[%clk 0:03:01]}  c5 {[%clk 0:02:56]} 7. e3 {[%clk 0:03:01]}  O-O {[%clk 0:02:55]} 8. cxd5 {[%clk 0:03:00]}  Nxd5 {[%clk 0:02:55]} 9. Ne2 {[%clk 0:02:52]}  cxd4 {[%clk 0:02:52]} 10. cxd4 {[%clk 0:02:51]}  Nc6 {[%clk 0:02:36]} 11. e4 {[%clk 0:02:48]}  Nf6 {[%clk 0:02:35]} 12. Be3 {[%clk 0:02:45]}  b6 {[%clk 0:02:30]} 13. Ng3 {[%clk 0:02:28]}  Bb7 {[%clk 0:02:27]} 14. Be2 {[%clk 0:02:26]}  Qd7 {[%clk 0:02:24]} 15. Qd2 {[%clk 0:02:22]}  Rfc8 {[%clk 0:02:24]} 16. O-O {[%clk 0:02:21]}  Na5 {[%clk 0:02:24]} 17. Rad1 {[%clk 0:02:18]}  Nc4 {[%clk 0:02:22]} 18. Bxc4 {[%clk 0:02:17]}  Rxc4 {[%clk 0:02:23]} 19. d5 {[%clk 0:02:09]}  exd5 {[%clk 0:02:21]} 20. e5 {[%clk 0:01:57]}  Ne8 {[%clk 0:02:18]} 21. f4 {[%clk 0:01:48]}  Rac8 {[%clk 0:02:12]} 22. Bd4 {[%clk 0:01:33]}  Nc7 {[%clk 0:02:10]} 23. f5 {[%clk 0:01:27]}  Nb5 {[%clk 0:02:11]} 24. Ba1 {[%clk 0:01:08]}  d4 {[%clk 0:02:10]} 25. Qg5 {[%clk 0:00:58]}  Qd5 {[%clk 0:02:08]} 26. Nh5 {[%clk 0:00:55]}  Qxe5 {[%clk 0:01:46]} 27. Rde1 {[%clk 0:00:53]}  h6 {[%clk 0:01:46]} 28. Qg4 {[%clk 0:00:52]}  d3 {[%clk 0:01:01]} 29. Qxc4 {[%clk 0:00:52]}  Rxc4 {[%clk 0:00:37]} 30. Rxe5 {[%clk 0:00:50]}  Rc2 {[%clk 0:00:38]} 31. Nf4 {[%clk 0:00:37]}  Nxa3 {[%clk 0:00:37]} 32. Re8+ {[%clk 0:00:33]}  Kh7 {[%clk 0:00:37]} 33. Re7 {[%clk 0:00:32]}  Bc6 {[%clk 0:00:23]} 34. Rxf7 {[%clk 0:00:31]}  Kg8 {[%clk 0:00:14]} 35. Rxg7+ {[%clk 0:00:29]}  Kf8 {[%clk 0:00:14]} 36. Ne6+ {[%clk 0:00:30]}  Ke8 {[%clk 0:00:15]} 37. Bf6 {[%clk 0:00:30]}  Rxg2+ {[%clk 0:00:08]} 38. Rxg2 {[%clk 0:00:30]}  Bxg2 {[%clk 0:00:09]} 39. Kxg2 {[%clk 0:00:31]}  Nc4 {[%clk 0:00:09]} 40. Rd1 {[%clk 0:00:31]}  Ne3+ {[%clk 0:00:09]} 41. Kf3 {[%clk 0:00:31]}  Nxd1 {[%clk 0:00:10]} 42. Ke4 {[%clk 0:00:29]}  Nf2+ {[%clk 0:00:10]} 43. Ke3 {[%clk 0:00:30]}  Ng4+ {[%clk 0:00:09]} 44. Kxd3 {[%clk 0:00:30]}  Nxf6 {[%clk 0:00:09]} 45. Kd4 {[%clk 0:00:30]}  Ng4 {[%clk 0:00:08]} 46. h3 {[%clk 0:00:29]}  Nf2 {[%clk 0:00:08]} 47. h4 {[%clk 0:00:26]}  Ke7 {[%clk 0:00:09]} 48. Nc7 {[%clk 0:00:25]}  Kf6 {[%clk 0:00:08]} 49. Ke3 {[%clk 0:00:24]}  Nd1+ {[%clk 0:00:06]} 50. Kd2 {[%clk 0:00:23]}  Nb2 {[%clk 0:00:06]} 51. Kc3 {[%clk 0:00:20]}  Na4+ {[%clk 0:00:06]} 52. Kb4 {[%clk 0:00:10]}  Nc5 {[%clk 0:00:07]} 0-1


[Site "https://www.chess.com"]

[Event "Titled Tuesday Blitz November 07 Late 2023"]
[White "Koziorowicz, Michal"]
[Black "PapaieDudu"]
[WhiteFideId "21809194"]
[WhiteElo "2559"]
[BlackElo "2387"]
[Result "1-0"]
[Round "5"]
[TimeControl "180+1"]
[Date "2023.11.07"]
[WhiteClock "0:01:58"]
[BlackClock "0:00:02"]
[Board "86"]

1. d4 {[%clk 0:03:00]}  d5 {[%clk 0:02:57]} 2. c4 {[%clk 0:03:00]}  e6 {[%clk 0:02:57]} 3. Nc3 {[%clk 0:03:00]}  Nf6 {[%clk 0:02:57]} 4. Bg5 {[%clk 0:02:59]}  dxc4 {[%clk 0:02:56]} 5. e4 {[%clk 0:02:59]}  a6 {[%clk 0:02:55]} 6. Bxc4 {[%clk 0:02:58]}  b5 {[%clk 0:02:55]} 7. Bb3 {[%clk 0:02:53]}  b4 {[%clk 0:02:48]} 8. Na4 {[%clk 0:02:45]}  Bb7 {[%clk 0:02:48]} 9. f3 {[%clk 0:02:45]}  Nc6 {[%clk 0:02:34]} 10. Ne2 {[%clk 0:02:43]}  h6 {[%clk 0:02:30]} 11. Be3 {[%clk 0:02:40]}  Na5 {[%clk 0:02:19]} 12. O-O {[%clk 0:02:38]}  Be7 {[%clk 0:02:14]} 13. Rc1 {[%clk 0:02:38]}  O-O {[%clk 0:02:10]} 14. Nc5 {[%clk 0:02:37]}  Bxc5 {[%clk 0:02:09]} 15. Rxc5 {[%clk 0:02:38]}  Nxb3 {[%clk 0:02:08]} 16. Qxb3 {[%clk 0:02:39]}  a5 {[%clk 0:01:55]} 17. Rfc1 {[%clk 0:02:39]}  Ba6 {[%clk 0:01:54]} 18. Ng3 {[%clk 0:02:38]}  h5 {[%clk 0:01:08]} 19. Nxh5 {[%clk 0:02:26]}  Nxh5 {[%clk 0:01:02]} 20. Rxh5 {[%clk 0:02:27]}  Qd7 {[%clk 0:00:36]} 21. Rxa5 {[%clk 0:02:18]}  Rfb8 {[%clk 0:00:22]} 22. Rac5 {[%clk 0:02:13]}  Rb7 {[%clk 0:00:20]} 23. Qc2 {[%clk 0:02:07]}  Rc8 {[%clk 0:00:16]} 24. b3 {[%clk 0:02:04]}  g6 {[%clk 0:00:09]} 25. h4 {[%clk 0:02:03]}  Kg7 {[%clk 0:00:05]} 26. h5 {[%clk 0:02:03]}  gxh5 {[%clk 0:00:04]} 27. Rxh5 {[%clk 0:02:04]}  Rh8 {[%clk 0:00:04]} 28. Rxh8 {[%clk 0:02:04]}  Kxh8 {[%clk 0:00:05]} 29. Qc5 {[%clk 0:02:04]}  Rb5 {[%clk 0:00:04]} 30. Qf8+ {[%clk 0:02:04]}  Kh7 {[%clk 0:00:05]} 31. Qh6+ {[%clk 0:02:02]}  Kg8 {[%clk 0:00:05]} 32. Kf2 {[%clk 0:02:01]}  Ra5 {[%clk 0:00:04]} 33. Rh1 {[%clk 0:02:00]}  Rxa2+ {[%clk 0:00:05]} 34. Kg3 {[%clk 0:02:00]}  f5 {[%clk 0:00:02]} 35. Qh8+ {[%clk 0:01:59]}  Kf7 {[%clk 0:00:03]} 36. Rh7+ {[%clk 0:02:00]}  Kg6 {[%clk 0:00:02]} 37. Qg8+ {[%clk 0:01:58]} 1-0


[Site "https://www.chess.com"]

[Event "Titled Tuesday Blitz November 07 Late 2023"]
[White "Santos Flores, Alberto"]
[Black "Kujawski, Adam"]
[WhiteFideId "3601234"]
[BlackFideId "1100920"]
[WhiteElo "2527"]
[BlackElo "2374"]
[Result "1-0"]
[Round "5"]
[TimeControl "180+1"]
[Date "2023.11.07"]
[WhiteClock "0:00:51"]
[BlackClock "0:00:02"]
[Board "89"]

1. e4 {[%clk 0:03:00]}  e5 {[%clk 0:02:58]} 2. Nf3 {[%clk 0:03:00]}  Nc6 {[%clk 0:02:58]} 3. Bc4 {[%clk 0:03:00]}  Nf6 {[%clk 0:02:58]} 4. d3 {[%clk 0:03:01]}  d5 {[%clk 0:02:58]} 5. exd5 {[%clk 0:03:00]}  Nxd5 {[%clk 0:02:59]} 6. O-O {[%clk 0:03:01]}  Nb6 {[%clk 0:02:59]} 7. Bb5 {[%clk 0:02:59]}  Bd6 {[%clk 0:02:59]} 8. Re1 {[%clk 0:02:58]}  f6 {[%clk 0:02:58]} 9. d4 {[%clk 0:02:57]}  O-O {[%clk 0:02:58]} 10. Bxc6 {[%clk 0:02:53]}  bxc6 {[%clk 0:02:58]} 11. dxe5 {[%clk 0:02:54]}  fxe5 {[%clk 0:02:59]} 12. Nc3 {[%clk 0:02:46]}  Bg4 {[%clk 0:02:58]} 13. Re3 {[%clk 0:02:45]}  e4 {[%clk 0:02:30]} 14. Rxe4 {[%clk 0:02:41]}  Bxf3 {[%clk 0:02:29]} 15. gxf3 {[%clk 0:02:42]}  Qf6 {[%clk 0:02:14]} 16. Kg2 {[%clk 0:02:36]}  Kh8 {[%clk 0:01:54]} 17. Be3 {[%clk 0:02:35]}  Nd5 {[%clk 0:01:42]} 18. Nxd5 {[%clk 0:02:14]}  cxd5 {[%clk 0:01:41]} 19. Rg4 {[%clk 0:02:14]}  c6 {[%clk 0:01:20]} 20. Bd4 {[%clk 0:02:08]}  Be5 {[%clk 0:01:19]} 21. Bxe5 {[%clk 0:02:08]}  Qxe5 {[%clk 0:01:20]} 22. Qd4 {[%clk 0:02:08]}  Rae8 {[%clk 0:00:56]} 23. Rd1 {[%clk 0:02:03]}  Qxd4 {[%clk 0:00:45]} 24. Rgxd4 {[%clk 0:02:02]}  Re2 {[%clk 0:00:45]} 25. R1d2 {[%clk 0:02:01]}  Rfe8 {[%clk 0:00:43]} 26. c4 {[%clk 0:01:56]}  Rxd2 {[%clk 0:00:42]} 27. Rxd2 {[%clk 0:01:56]}  dxc4 {[%clk 0:00:42]} 28. Rc2 {[%clk 0:01:55]}  Rb8 {[%clk 0:00:16]} 29. Rxc4 {[%clk 0:01:54]}  Rb6 {[%clk 0:00:17]} 30. b4 {[%clk 0:01:49]}  Kg8 {[%clk 0:00:17]} 31. a3 {[%clk 0:01:46]}  Kf7 {[%clk 0:00:17]} 32. f4 {[%clk 0:01:47]}  g6 {[%clk 0:00:16]} 33. Rc5 {[%clk 0:01:46]}  Kf6 {[%clk 0:00:16]} 34. Kf3 {[%clk 0:01:46]}  Ra6 {[%clk 0:00:14]} 35. Rc3 {[%clk 0:01:44]}  Kf7 {[%clk 0:00:12]} 36. Ke4 {[%clk 0:01:44]}  Ra4 {[%clk 0:00:11]} 37. Kd4 {[%clk 0:01:34]}  a5 {[%clk 0:00:10]} 38. Kc5 {[%clk 0:01:33]}  axb4 {[%clk 0:00:10]} 39. axb4 {[%clk 0:01:33]}  Ra2 {[%clk 0:00:10]} 40. Kxc6 {[%clk 0:01:30]}  Rxf2 {[%clk 0:00:10]} 41. b5 {[%clk 0:01:30]}  Rxh2 {[%clk 0:00:09]} 42. b6 {[%clk 0:01:30]}  Rb2 {[%clk 0:00:09]} 43. b7 {[%clk 0:01:30]}  h5 {[%clk 0:00:08]} 44. Rc5 {[%clk 0:01:26]}  Rxb7 {[%clk 0:00:04]} 45. Kxb7 {[%clk 0:01:26]}  h4 {[%clk 0:00:03]} 46. Kc6 {[%clk 0:01:26]}  Kf6 {[%clk 0:00:02]} 47. Rg5 {[%clk 0:00:51]}  h3 {[%clk 0:00:02]} 48. Rg3 {[%clk 0:00:51]}  Kf5 {[%clk 0:00:02]} 49. Rxh3 {[%clk 0:00:52]}  Kxf4 {[%clk 0:00:02]} 50. Kd5 {[%clk 0:00:52]}  g5 {[%clk 0:00:03]} 51. Rh8 {[%clk 0:00:51]}  g4 {[%clk 0:00:03]} 52. Kd4 {[%clk 0:00:51]}  Kf3 {[%clk 0:00:02]} 53. Kd3 {[%clk 0:00:51]}  g3 {[%clk 0:00:02]} 54. Rf8+ {[%clk 0:00:51]}  Kg4 {[%clk 0:00:02]} 55. Ke2 {[%clk 0:00:52]}  Kh3 {[%clk 0:00:02]} 56. Kf1 {[%clk 0:00:52]}  Kh2 {[%clk 0:00:02]} 57. Rh8# {[%clk 0:00:51]} 1-0


[Site "https://www.chess.com"]

[Event "Titled Tuesday Blitz November 07 Late 2023"]
[White "Tikhonov, Viacheslav"]
[Black "Becerra, Juan David"]
[WhiteFideId "44196407"]
[BlackFideId "4404998"]
[WhiteElo "2527"]
[BlackElo "2370"]
[Result "1-0"]
[Round "5"]
[TimeControl "180+1"]
[Date "2023.11.07"]
[WhiteClock "0:01:56"]
[BlackClock "0:01:20"]
[Board "90"]

1. e4 {[%clk 0:03:00]}  e6 {[%clk 0:03:00]} 2. d4 {[%clk 0:03:00]}  d5 {[%clk 0:03:01]} 3. exd5 {[%clk 0:03:01]}  exd5 {[%clk 0:03:02]} 4. Bd3 {[%clk 0:03:01]}  Nc6 {[%clk 0:03:02]} 5. c3 {[%clk 0:03:01]}  Bd6 {[%clk 0:03:03]} 6. Qf3 {[%clk 0:03:01]}  Nge7 {[%clk 0:03:02]} 7. h3 {[%clk 0:03:01]}  Be6 {[%clk 0:02:56]} 8. Ne2 {[%clk 0:03:01]}  Qd7 {[%clk 0:02:56]} 9. Bf4 {[%clk 0:03:02]}  O-O-O {[%clk 0:02:51]} 10. O-O {[%clk 0:03:01]}  f6 {[%clk 0:02:49]} 11. Nd2 {[%clk 0:02:59]}  g5 {[%clk 0:02:47]} 12. Bxd6 {[%clk 0:02:59]}  Qxd6 {[%clk 0:02:44]} 13. Qg3 {[%clk 0:03:00]}  Qd7 {[%clk 0:02:40]} 14. Kh2 {[%clk 0:02:56]}  h5 {[%clk 0:02:40]} 15. f4 {[%clk 0:02:48]}  h4 {[%clk 0:02:34]} 16. Qf2 {[%clk 0:02:42]}  g4 {[%clk 0:02:31]} 17. hxg4 {[%clk 0:02:40]}  Bxg4 {[%clk 0:02:30]} 18. f5 {[%clk 0:02:27]}  Rhg8 {[%clk 0:02:21]} 19. Qf4 {[%clk 0:02:25]}  Rg5 {[%clk 0:02:07]} 20. Nf3 {[%clk 0:02:16]}  Bxf5 {[%clk 0:01:44]} 21. Nxg5 {[%clk 0:01:59]}  fxg5 {[%clk 0:01:41]} 22. Qxf5 {[%clk 0:01:55]}  Nxf5 {[%clk 0:01:20]} 23. Bxf5 {[%clk 0:01:56]} 1-0


[Site "https://www.chess.com"]

[Event "Titled Tuesday Blitz November 07 Late 2023"]
[White "Arencibia Monduy, Antonio"]
[Black "patzersame"]
[WhiteFideId "3507939"]
[WhiteElo "2523"]
[BlackElo "2356"]
[Result "1-0"]
[Round "5"]
[TimeControl "180+1"]
[Date "2023.11.07"]
[WhiteClock "0:00:06"]
[BlackClock "0:00:05"]
[Board "91"]

1. b3 {[%clk 0:03:00]}  a5 {[%clk 0:02:58]} 2. a4 {[%clk 0:03:00]}  Nf6 {[%clk 0:02:57]} 3. Bb2 {[%clk 0:02:59]}  b6 {[%clk 0:02:57]} 4. Nf3 {[%clk 0:02:59]}  Bb7 {[%clk 0:02:58]} 5. e3 {[%clk 0:02:59]}  g6 {[%clk 0:02:58]} 6. Be2 {[%clk 0:02:57]}  Bg7 {[%clk 0:02:58]} 7. O-O {[%clk 0:02:57]}  O-O {[%clk 0:02:58]} 8. d3 {[%clk 0:02:57]}  c5 {[%clk 0:02:59]} 9. Nbd2 {[%clk 0:02:57]}  d5 {[%clk 0:02:59]} 10. Re1 {[%clk 0:02:47]}  Nc6 {[%clk 0:02:58]} 11. e4 {[%clk 0:02:34]}  e6 {[%clk 0:02:55]} 12. Bf1 {[%clk 0:02:30]}  Nh5 {[%clk 0:02:50]} 13. Bxg7 {[%clk 0:02:28]}  Kxg7 {[%clk 0:02:51]} 14. e5 {[%clk 0:02:20]}  Kg8 {[%clk 0:02:25]} 15. Qb1 {[%clk 0:02:17]}  d4 {[%clk 0:02:15]} 16. Qd1 {[%clk 0:02:10]}  Rb8 {[%clk 0:02:12]} 17. Nc4 {[%clk 0:02:08]}  Ba8 {[%clk 0:02:08]} 18. Qd2 {[%clk 0:02:06]}  Ng7 {[%clk 0:02:01]} 19. Ng5 {[%clk 0:01:56]}  h6 {[%clk 0:01:56]} 20. Ne4 {[%clk 0:01:56]}  g5 {[%clk 0:01:43]} 21. h4 {[%clk 0:01:48]}  Nf5 {[%clk 0:01:29]} 22. Nf6+ {[%clk 0:01:48]}  Kh8 {[%clk 0:01:27]} 23. hxg5 {[%clk 0:01:48]}  Rg8 {[%clk 0:01:20]} 24. Nxg8 {[%clk 0:01:08]}  Qxg8 {[%clk 0:01:21]} 25. g3 {[%clk 0:00:58]}  Nb4 {[%clk 0:01:10]} 26. Bg2 {[%clk 0:00:56]}  Bxg2 {[%clk 0:01:10]} 27. Kxg2 {[%clk 0:00:57]}  Nd5 {[%clk 0:01:11]} 28. Rh1 {[%clk 0:00:57]}  Kg7 {[%clk 0:01:01]} 29. Rh5 {[%clk 0:00:56]}  Kf8 {[%clk 0:00:56]} 30. Rah1 {[%clk 0:00:55]}  Ke7 {[%clk 0:00:47]} 31. Nd6 {[%clk 0:00:41]}  hxg5 {[%clk 0:00:18]} 32. Nxf5+ {[%clk 0:00:41]}  exf5 {[%clk 0:00:17]} 33. Qxg5+ {[%clk 0:00:29]}  Qxg5 {[%clk 0:00:17]} 34. Rxg5 {[%clk 0:00:30]}  Ke6 {[%clk 0:00:17]} 35. Rh6+ {[%clk 0:00:30]}  Ke7 {[%clk 0:00:13]} 36. Rxf5 {[%clk 0:00:29]}  Nb4 {[%clk 0:00:13]} 37. Rh7 {[%clk 0:00:27]}  Nxc2 {[%clk 0:00:12]} 38. Rhxf7+ {[%clk 0:00:19]}  Ke6 {[%clk 0:00:12]} 39. Kf3 {[%clk 0:00:16]}  Nb4 {[%clk 0:00:10]} 40. Ke4 {[%clk 0:00:16]}  Nd5 {[%clk 0:00:07]} 41. g4 {[%clk 0:00:07]}  b5 {[%clk 0:00:07]} 42. Rh7 {[%clk 0:00:06]}  Nc3+ {[%clk 0:00:07]} 43. Kf3 {[%clk 0:00:07]}  bxa4 {[%clk 0:00:06]} 44. Rh6+ {[%clk 0:00:07]}  Ke7 {[%clk 0:00:06]} 45. bxa4 {[%clk 0:00:07]}  c4 {[%clk 0:00:05]} 46. dxc4 {[%clk 0:00:06]}  d3 {[%clk 0:00:06]} 47. Ke3 {[%clk 0:00:07]}  Rb3 {[%clk 0:00:05]} 48. Kxd3 {[%clk 0:00:06]}  Nd5+ {[%clk 0:00:05]} 49. Kd4 {[%clk 0:00:06]}  Nb4 {[%clk 0:00:05]} 50. Rh7+ {[%clk 0:00:06]}  Ke6 {[%clk 0:00:05]} 51. Rf6# {[%clk 0:00:06]} 1-0


[Site "https://www.chess.com"]

[Event "Titled Tuesday Blitz November 07 Late 2023"]
[White "Maect19"]
[Black "Reprintsev, Alexander"]
[BlackFideId "14100541"]
[WhiteElo "2345"]
[BlackElo "2512"]
[Result "1/2-1/2"]
[Round "5"]
[TimeControl "180+1"]
[Date "2023.11.07"]
[WhiteClock "0:00:08"]
[BlackClock "0:00:08"]
[Board "93"]

1. d4 {[%clk 0:02:54]}  d5 {[%clk 0:02:59]} 2. Nf3 {[%clk 0:02:54]}  Nc6 {[%clk 0:02:59]} 3. e3 {[%clk 0:02:53]}  Bg4 {[%clk 0:02:57]} 4. b3 {[%clk 0:02:52]}  e6 {[%clk 0:02:57]} 5. Bb2 {[%clk 0:02:51]}  f5 {[%clk 0:02:57]} 6. Nbd2 {[%clk 0:02:49]}  Nf6 {[%clk 0:02:57]} 7. Be2 {[%clk 0:02:49]}  Be7 {[%clk 0:02:56]} 8. h3 {[%clk 0:02:49]}  Bh5 {[%clk 0:02:54]} 9. O-O {[%clk 0:02:49]}  O-O {[%clk 0:02:54]} 10. c4 {[%clk 0:02:46]}  Ne4 {[%clk 0:02:53]} 11. Nh2 {[%clk 0:02:32]}  Bxe2 {[%clk 0:02:51]} 12. Qxe2 {[%clk 0:02:33]}  Bd6 {[%clk 0:02:47]} 13. Rfd1 {[%clk 0:02:30]}  Ne7 {[%clk 0:02:37]} 14. Ndf1 {[%clk 0:02:27]}  c6 {[%clk 0:02:34]} 15. f3 {[%clk 0:02:27]}  Nf6 {[%clk 0:02:25]} 16. Nd2 {[%clk 0:02:17]}  Qc7 {[%clk 0:02:24]} 17. Nhf1 {[%clk 0:02:16]}  Ng6 {[%clk 0:02:24]} 18. e4 {[%clk 0:02:13]}  fxe4 {[%clk 0:02:23]} 19. fxe4 {[%clk 0:02:13]}  Nf4 {[%clk 0:02:21]} 20. Qe3 {[%clk 0:02:10]}  dxe4 {[%clk 0:02:00]} 21. Nxe4 {[%clk 0:02:10]}  Nxe4 {[%clk 0:01:59]} 22. Qxe4 {[%clk 0:02:10]}  c5 {[%clk 0:01:50]} 23. d5 {[%clk 0:02:05]}  e5 {[%clk 0:01:49]} 24. Ne3 {[%clk 0:01:58]}  Ne2+ {[%clk 0:01:39]} 25. Kh2 {[%clk 0:01:54]}  Rf4 {[%clk 0:01:35]} 26. Qc2 {[%clk 0:01:44]}  Nd4 {[%clk 0:01:35]} 27. Qd2 {[%clk 0:01:31]}  Raf8 {[%clk 0:01:34]} 28. Rf1 {[%clk 0:01:25]}  e4 {[%clk 0:01:33]} 29. Kg1 {[%clk 0:01:18]}  Be5 {[%clk 0:01:02]} 30. Ng4 {[%clk 0:00:58]}  h5 {[%clk 0:00:42]} 31. Nxe5 {[%clk 0:00:57]}  Rxf1+ {[%clk 0:00:41]} 32. Rxf1 {[%clk 0:00:56]}  Rxf1+ {[%clk 0:00:39]} 33. Kxf1 {[%clk 0:00:55]}  Qxe5 {[%clk 0:00:40]} 34. Kf2 {[%clk 0:00:20]}  h4 {[%clk 0:00:35]} 35. Qe3 {[%clk 0:00:13]}  Qf6+ {[%clk 0:00:32]} 36. Kg1 {[%clk 0:00:12]}  Nf3+ {[%clk 0:00:31]} 37. gxf3 {[%clk 0:00:11]}  Qxb2 {[%clk 0:00:31]} 38. Qxe4 {[%clk 0:00:11]}  Qa1+ {[%clk 0:00:29]} 39. Kf2 {[%clk 0:00:11]}  Qxa2+ {[%clk 0:00:29]} 40. Kf1 {[%clk 0:00:11]}  Qa1+ {[%clk 0:00:23]} 41. Kf2 {[%clk 0:00:10]}  Qb2+ {[%clk 0:00:15]} 42. Kf1 {[%clk 0:00:10]}  Qc1+ {[%clk 0:00:14]} 43. Kf2 {[%clk 0:00:10]}  Qd2+ {[%clk 0:00:14]} 44. Qe2 {[%clk 0:00:08]}  Qd4+ {[%clk 0:00:12]} 45. Qe3 {[%clk 0:00:08]}  Qb2+ {[%clk 0:00:12]} 46. Kf1 {[%clk 0:00:08]}  Qb1+ {[%clk 0:00:12]} 47. Kf2 {[%clk 0:00:08]}  Qg6 {[%clk 0:00:12]} 48. f4 {[%clk 0:00:07]}  a6 {[%clk 0:00:11]} 49. Qe5 {[%clk 0:00:07]}  Qg3+ {[%clk 0:00:10]} 50. Ke2 {[%clk 0:00:06]}  Qg2+ {[%clk 0:00:10]} 51. Ke1 {[%clk 0:00:06]}  Qh1+ {[%clk 0:00:10]} 52. Ke2 {[%clk 0:00:06]}  Qh2+ {[%clk 0:00:10]} 53. Ke1 {[%clk 0:00:06]}  Qg1+ {[%clk 0:00:10]} 54. Ke2 {[%clk 0:00:07]}  Qg2+ {[%clk 0:00:11]} 55. Ke1 {[%clk 0:00:07]}  g6 {[%clk 0:00:08]} 56. Qe6+ {[%clk 0:00:07]}  Kg7 {[%clk 0:00:08]} 57. Qe7+ {[%clk 0:00:07]}  Kg8 {[%clk 0:00:07]} 58. Qe8+ {[%clk 0:00:07]}  Kh7 {[%clk 0:00:08]} 59. Qe7+ {[%clk 0:00:08]}  Kg8 {[%clk 0:00:08]} 60. Qe8+ {[%clk 0:00:08]}  Kg7 {[%clk 0:00:08]} 61. Qe7+ {[%clk 0:00:08]}  Kg8 {[%clk 0:00:08]} 1/2-1/2


[Site "https://www.chess.com"]

[Event "Titled Tuesday Blitz November 07 Late 2023"]
[White "Garrido, Denis"]
[Black "Nilsen, Tobias Lang"]
[WhiteFideId "601217"]
[BlackFideId "1521624"]
[WhiteElo "2323"]
[BlackElo "2509"]
[Result "0-1"]
[Round "5"]
[TimeControl "180+1"]
[Date "2023.11.07"]
[WhiteClock "0:00:32"]
[BlackClock "0:00:46"]
[Board "95"]

1. e4 {[%clk 0:02:59]}  e5 {[%clk 0:02:59]} 2. Nf3 {[%clk 0:02:58]}  Nc6 {[%clk 0:02:59]} 3. Bb5 {[%clk 0:02:58]}  a6 {[%clk 0:03:00]} 4. Ba4 {[%clk 0:02:58]}  Nf6 {[%clk 0:03:00]} 5. O-O {[%clk 0:02:58]}  b5 {[%clk 0:02:58]} 6. Bb3 {[%clk 0:02:58]}  Be7 {[%clk 0:02:59]} 7. d3 {[%clk 0:02:58]}  O-O {[%clk 0:02:57]} 8. a4 {[%clk 0:02:56]}  b4 {[%clk 0:02:56]} 9. Nbd2 {[%clk 0:02:55]}  d6 {[%clk 0:02:51]} 10. Nc4 {[%clk 0:02:48]}  Be6 {[%clk 0:02:50]} 11. a5 {[%clk 0:02:48]}  Nd7 {[%clk 0:02:49]} 12. Ba4 {[%clk 0:02:37]}  Nd4 {[%clk 0:02:36]} 13. Nxd4 {[%clk 0:02:35]}  exd4 {[%clk 0:02:36]} 14. Bd2 {[%clk 0:02:18]}  Rb8 {[%clk 0:02:30]} 15. Bxd7 {[%clk 0:01:58]}  Qxd7 {[%clk 0:02:29]} 16. b3 {[%clk 0:01:58]}  f5 {[%clk 0:02:25]} 17. exf5 {[%clk 0:01:50]}  Rxf5 {[%clk 0:02:17]} 18. Re1 {[%clk 0:01:50]}  Bd5 {[%clk 0:02:10]} 19. Qg4 {[%clk 0:01:42]}  Rbf8 {[%clk 0:01:33]} 20. Qxd4 {[%clk 0:01:18]}  Bf6 {[%clk 0:01:13]} 21. Qa7 {[%clk 0:00:45]}  Bxa1 {[%clk 0:01:05]} 22. Nb6 {[%clk 0:00:39]}  Qc6 {[%clk 0:00:46]} 23. Nxd5 {[%clk 0:00:38]}  Qxd5 {[%clk 0:00:46]} 24. Rxa1 {[%clk 0:00:32]}  Rxf2 {[%clk 0:00:46]} 0-1


[Site "https://www.chess.com"]